[Event "*** Titled Tuesday Blitz"]
[Site "Chess.com"]
[Date "2020.05.26"]
[Round "1"]
[White "nikitakhoroshev"]
[Black "Paralinch"]
[Result "0-1"]
[WhiteElo "2424"]
[BlackElo "2874"]
[TimeControl "180+1"]
[EndTime "10:07:46 PDT"]
[Termination "Paralinch won by resignation"]

1. Nf3 {[%clk 0:02:59.6]} 1... c5 {[%clk 0:02:53.8]} 2. g3 {[%clk 0:02:55.1]}
2... Nc6 {[%clk 0:02:45.7]} 3. Bg2 {[%clk 0:02:54.2]} 3... g6 {[%clk 0:02:45.7]}
4. c3 {[%clk 0:02:52]} 4... e5 {[%clk 0:02:44.8]} 5. O-O {[%clk 0:02:47.7]} 5...
Bg7 {[%clk 0:02:44.7]} 6. Na3 {[%clk 0:02:45.7]} 6... d5 {[%clk 0:02:42.6]} 7.
Nc2 {[%clk 0:02:42.9]} 7... Nge7 {[%clk 0:02:33.7]} 8. d4 {[%clk 0:02:39.3]}
8... cxd4 {[%clk 0:02:32.3]} 9. cxd4 {[%clk 0:02:39.7]} 9... e4 {[%clk
0:02:32.7]} 10. Nfe1 {[%clk 0:02:33.9]} 10... O-O {[%clk 0:02:31.4]} 11. f4
{[%clk 0:02:23.7]} 11... exf3 {[%clk 0:02:26.8]} 12. exf3 {[%clk 0:02:05.8]}
12... Bf5 {[%clk 0:02:25.9]} 13. Be3 {[%clk 0:02:03.2]} 13... Qb6 {[%clk
0:02:23.4]} 14. b3 {[%clk 0:02:01.3]} 14... Rac8 {[%clk 0:02:22.7]} 15. Qd2
{[%clk 0:02:00.6]} 15... Bxc2 {[%clk 0:02:16.9]} 16. Nxc2 {[%clk 0:02:00]} 16...
Nf5 {[%clk 0:02:17.4]} 17. Rfd1 {[%clk 0:01:53.3]} 17... Nxe3 {[%clk 0:02:09.5]}
18. Qxe3 {[%clk 0:01:54.2]} 18... Rfe8 {[%clk 0:02:03.6]} 19. Qd2 {[%clk
0:01:50.7]} 19... Re7 {[%clk 0:02:00.2]} 20. Kh1 {[%clk 0:01:41.6]} 20... Rce8
{[%clk 0:02:00]} 21. Bf1 {[%clk 0:01:41.7]} 21... h5 {[%clk 0:01:52.1]} 22. Rac1
{[%clk 0:01:38.9]} 22... h4 {[%clk 0:01:51.9]} 23. Kg2 {[%clk 0:01:38.8]} 23...
Qd8 {[%clk 0:01:29]} 24. b4 {[%clk 0:01:27.4]} 24... Qd7 {[%clk 0:01:16.9]} 25.
b5 {[%clk 0:01:24.7]} 25... Nd8 {[%clk 0:01:13.1]} 26. Re1 {[%clk 0:01:21.6]}
26... Ne6 {[%clk 0:01:11]} 27. a4 {[%clk 0:01:17.8]} 27... Kh7 {[%clk
0:01:10.5]} 28. Rcd1 {[%clk 0:01:16.8]} 28... Bh6 {[%clk 0:01:10.4]} 29. Qf2
{[%clk 0:01:15]} 29... Bg7 {[%clk 0:01:04.9]} 30. gxh4 {[%clk 0:01:02.2]} 30...
Nf4+ {[%clk 0:01:04.3]} 31. Kh1 {[%clk 0:01:01.4]} 31... Qf5 {[%clk 0:01:03.6]}
32. Ne3 {[%clk 0:00:59.4]} 32... Qh5 {[%clk 0:01:03.1]} 33. Ng4 {[%clk
0:00:56.5]} 33... Qf5 {[%clk 0:00:42.6]} 34. Ne3 {[%clk 0:00:53]} 34... Qd7
{[%clk 0:00:39.9]} 35. Nc2 {[%clk 0:00:48]} 35... Bf6 {[%clk 0:00:34.9]} 36. Re3
{[%clk 0:00:39.8]} 36... Rxe3 {[%clk 0:00:32.7]} 37. Nxe3 {[%clk 0:00:39.2]}
37... Qe7 {[%clk 0:00:32.6]} 38. Ng4 {[%clk 0:00:37.5]} 38... Bxh4 {[%clk
0:00:32.3]} 39. Qd2 {[%clk 0:00:37.6]} 39... Qg5 {[%clk 0:00:30.7]} 40. Rc1
{[%clk 0:00:31]} 40... Re7 {[%clk 0:00:29.8]} 41. Rc8 {[%clk 0:00:29.7]} 41...
Qf5 {[%clk 0:00:27.1]} 42. Rc1 {[%clk 0:00:25.8]} 42... Kg7 {[%clk 0:00:24.7]}
43. Ne3 {[%clk 0:00:24.1]} 43... Qh5 {[%clk 0:00:22.9]} 44. Ng4 {[%clk
0:00:23.8]} 44... Qf5 {[%clk 0:00:23]} 45. Ne3 {[%clk 0:00:23.3]} 45... Qh5
{[%clk 0:00:23.2]} 46. Ng4 {[%clk 0:00:23.5]} 46... Ne6 {[%clk 0:00:23.5]} 47.
Rd1 {[%clk 0:00:22.5]} 47... Qf5 {[%clk 0:00:22.7]} 48. Qd3 {[%clk 0:00:22]}
48... Qxd3 {[%clk 0:00:19.2]} 49. Rxd3 {[%clk 0:00:22.9]} 49... Nf4 {[%clk
0:00:19]} 50. Re3 {[%clk 0:00:23.1]} 50... Rc7 {[%clk 0:00:19.3]} 51. Rb3 {[%clk
0:00:17.9]} 51... Rc1 {[%clk 0:00:19.1]} 52. Ne3 {[%clk 0:00:18.4]} 52... Bf2
{[%clk 0:00:17.3]} 0-1

[Event "*** Titled Tuesday Blitz"]
[Site "Chess.com"]
[Date "2020.05.26"]
[Round "1"]
[White "51616516516"]
[Black "Kostya_Nikologorskiy"]
[Result "1/2-1/2"]
[WhiteElo "2361"]
[BlackElo "2708"]
[TimeControl "180+1"]
[EndTime "10:07:46 PDT"]
[Termination "Game drawn by stalemate"]

1. d4 {[%clk 0:02:59.5]} 1... Nf6 {[%clk 0:02:59.5]} 2. c4 {[%clk 0:02:59.4]}
2... g6 {[%clk 0:02:59.3]} 3. Nc3 {[%clk 0:02:58.2]} 3... Bg7 {[%clk 0:02:59.6]}
4. e4 {[%clk 0:02:58.6]} 4... d6 {[%clk 0:02:58.2]} 5. Nf3 {[%clk 0:02:58.9]}
5... O-O {[%clk 0:02:58.2]} 6. Be2 {[%clk 0:02:59.4]} 6... e5 {[%clk 0:02:58.2]}
7. O-O {[%clk 0:02:59.9]} 7... Nc6 {[%clk 0:02:57.2]} 8. Be3 {[%clk 0:03:00.3]}
8... Ng4 {[%clk 0:02:50.5]} 9. Bg5 {[%clk 0:02:59.5]} 9... f6 {[%clk 0:02:49.9]}
10. Bh4 {[%clk 0:02:59.8]} 10... g5 {[%clk 0:02:46.5]} 11. Bg3 {[%clk
0:02:58.9]} 11... Nh6 {[%clk 0:02:41.7]} 12. Qd2 {[%clk 0:02:47.4]} 12... g4
{[%clk 0:02:33.5]} 13. Nh4 {[%clk 0:02:43.7]} 13... Nxd4 {[%clk 0:02:33.3]} 14.
Rad1 {[%clk 0:02:37.2]} 14... Be6 {[%clk 0:02:27.2]} 15. b3 {[%clk 0:02:36.1]}
15... Qd7 {[%clk 0:02:26.4]} 16. Nb5 {[%clk 0:02:26.3]} 16... Nxe2+ {[%clk
0:02:12.7]} 17. Qxe2 {[%clk 0:02:24.5]} 17... Nf7 {[%clk 0:02:12.5]} 18. Nc3
{[%clk 0:02:09.7]} 18... Ng5 {[%clk 0:02:05.4]} 19. Rd3 {[%clk 0:02:06.4]} 19...
Qf7 {[%clk 0:02:01.8]} 20. Rfd1 {[%clk 0:02:02]} 20... h5 {[%clk 0:02:01.3]} 21.
Nd5 {[%clk 0:01:50.1]} 21... Rad8 {[%clk 0:01:59.1]} 22. a4 {[%clk 0:01:41.8]}
22... Kh7 {[%clk 0:01:46.7]} 23. a5 {[%clk 0:01:36.1]} 23... f5 {[%clk
0:01:46.8]} 24. exf5 {[%clk 0:01:33.5]} 24... Bxf5 {[%clk 0:01:47.2]} 25. Nxf5
{[%clk 0:01:20.7]} 25... Qxf5 {[%clk 0:01:48.1]} 26. Nxc7 {[%clk 0:01:20.7]}
26... Ne4 {[%clk 0:01:33.5]} 27. Ne6 {[%clk 0:01:06.2]} 27... Qxe6 {[%clk
0:01:26.8]} 28. Qxe4+ {[%clk 0:01:05.7]} 28... Kh8 {[%clk 0:01:23.2]} 29. c5
{[%clk 0:00:55.9]} 29... Bf6 {[%clk 0:01:18]} 30. Rxd6 {[%clk 0:00:30.9]} 30...
Rxd6 {[%clk 0:01:12.4]} 31. Rxd6 {[%clk 0:00:31.8]} 31... Qxb3 {[%clk
0:01:12.7]} 32. Bxe5 {[%clk 0:00:27.7]} 32... Kg7 {[%clk 0:00:34.9]} 33. Bxf6+
{[%clk 0:00:17.4]} 33... Rxf6 {[%clk 0:00:35.2]} 34. Qe7+ {[%clk 0:00:16.8]}
34... Qf7 {[%clk 0:00:35.3]} 35. Qxf6+ {[%clk 0:00:03.3]} 35... Qxf6 {[%clk
0:00:35.5]} 36. Rxf6 {[%clk 0:00:04.2]} 36... Kxf6 {[%clk 0:00:36.4]} 37. f3
{[%clk 0:00:03.1]} 37... gxf3 {[%clk 0:00:30.4]} 38. gxf3 {[%clk 0:00:04]} 38...
Ke5 {[%clk 0:00:31.2]} 39. Kf2 {[%clk 0:00:04.8]} 39... Kd5 {[%clk 0:00:31.8]}
40. f4 {[%clk 0:00:04.9]} 40... Kxc5 {[%clk 0:00:32.1]} 41. Kg3 {[%clk
0:00:03.1]} 41... b5 {[%clk 0:00:32]} 42. axb6 {[%clk 0:00:02.6]} 42... axb6
{[%clk 0:00:32.5]} 43. f5 {[%clk 0:00:02.2]} 43... Kd6 {[%clk 0:00:32.3]} 44.
Kf4 {[%clk 0:00:03.1]} 44... b5 {[%clk 0:00:31.8]} 45. Ke4 {[%clk 0:00:03.5]}
45... b4 {[%clk 0:00:31.1]} 46. Kd4 {[%clk 0:00:03.7]} 46... h4 {[%clk
0:00:30.5]} 47. Kc4 {[%clk 0:00:03.1]} 47... Ke5 {[%clk 0:00:30.9]} 48. Kxb4
{[%clk 0:00:03.7]} 48... Kxf5 {[%clk 0:00:31.5]} 49. Kc3 {[%clk 0:00:04.1]}
49... Ke4 {[%clk 0:00:30.7]} 50. Kd2 {[%clk 0:00:03.9]} 50... Kf3 {[%clk
0:00:30.7]} 51. Ke1 {[%clk 0:00:04.2]} 51... Kg2 {[%clk 0:00:31.2]} 52. Ke2
{[%clk 0:00:04.5]} 52... h3 {[%clk 0:00:30.7]} 53. Ke1 {[%clk 0:00:04.8]} 53...
Kxh2 {[%clk 0:00:29.9]} 54. Kf2 {[%clk 0:00:04.9]} 54... Kh1 {[%clk 0:00:30.2]}
55. Kf1 {[%clk 0:00:05.4]} 55... h2 {[%clk 0:00:30.8]} 56. Kf2 {[%clk
0:00:05.6]} 1/2-1/2

[Event "*** Titled Tuesday Blitz"]
[Site "Chess.com"]
[Date "2020.05.26"]
[Round "1"]
[White "Xtrmntr78"]
[Black "Anton_Demchenko"]
[Result "1-0"]
[WhiteElo "2432"]
[BlackElo "2839"]
[TimeControl "180+1"]
[EndTime "10:07:47 PDT"]
[Termination "Xtrmntr78 won on time"]

1. c4 {[%clk 0:03:00.4]} 1... e5 {[%clk 0:02:56.5]} 2. Nc3 {[%clk 0:02:59.7]}
2... d6 {[%clk 0:02:56.3]} 3. Nf3 {[%clk 0:02:58.3]} 3... f5 {[%clk 0:02:55.1]}
4. g3 {[%clk 0:02:57.7]} 4... Nf6 {[%clk 0:02:54.6]} 5. Bg2 {[%clk 0:02:57.6]}
5... Be7 {[%clk 0:02:55.2]} 6. O-O {[%clk 0:02:57.2]} 6... O-O {[%clk
0:02:55.5]} 7. d4 {[%clk 0:02:53.9]} 7... e4 {[%clk 0:02:54.1]} 8. Ng5 {[%clk
0:02:54]} 8... c6 {[%clk 0:02:29.7]} 9. d5 {[%clk 0:02:44.7]} 9... h6 {[%clk
0:02:26.5]} 10. Nh3 {[%clk 0:02:43.4]} 10... Nbd7 {[%clk 0:02:26.7]} 11. f3
{[%clk 0:02:40.5]} 11... exf3 {[%clk 0:02:05.4]} 12. exf3 {[%clk 0:02:39.8]}
12... Ne5 {[%clk 0:01:59.2]} 13. b3 {[%clk 0:02:37.7]} 13... cxd5 {[%clk
0:01:55.2]} 14. Nxd5 {[%clk 0:02:36.1]} 14... Nxd5 {[%clk 0:01:32.1]} 15. Qxd5+
{[%clk 0:02:33.3]} 15... Kh7 {[%clk 0:01:32.6]} 16. Ba3 {[%clk 0:02:14.9]} 16...
Bd7 {[%clk 0:01:24.2]} 17. Rad1 {[%clk 0:02:06.2]} 17... Bc6 {[%clk 0:01:23.4]}
18. Qd2 {[%clk 0:02:06]} 18... Qb6+ {[%clk 0:00:51.5]} 19. Kh1 {[%clk
0:02:03.2]} 19... Rad8 {[%clk 0:00:51.3]} 20. Nf4 {[%clk 0:01:52.7]} 20... Bg5
{[%clk 0:00:47.6]} 21. h4 {[%clk 0:01:37.5]} 21... Bxf4 {[%clk 0:00:27.3]} 22.
Qxf4 {[%clk 0:01:36.1]} 22... Ng6 {[%clk 0:00:26.9]} 23. Qd4 {[%clk 0:01:28.7]}
23... Qa5 {[%clk 0:00:15.5]} 24. Bb2 {[%clk 0:01:14.1]} 24... Rf7 {[%clk
0:00:12.6]} 25. h5 {[%clk 0:01:11.7]} 25... Nf8 {[%clk 0:00:12]} 26. Qc3 {[%clk
0:00:59.5]} 26... Qc7 {[%clk 0:00:10.8]} 27. Rfe1 {[%clk 0:00:52.7]} 27... f4
{[%clk 0:00:11.1]} 28. g4 {[%clk 0:00:51.6]} 28... Nd7 {[%clk 0:00:09.2]} 29.
Re6 {[%clk 0:00:43.5]} 29... Nf8 {[%clk 0:00:06.7]} 30. Re2 {[%clk 0:00:39.7]}
30... Kg8 {[%clk 0:00:06.4]} 31. Kg1 {[%clk 0:00:23.8]} 31... Re8 {[%clk
0:00:05.9]} 32. Rde1 {[%clk 0:00:22]} 32... Rxe2 {[%clk 0:00:05.3]} 33. Rxe2
{[%clk 0:00:22.4]} 33... a6 {[%clk 0:00:05.8]} 34. Kf2 {[%clk 0:00:18.5]} 34...
Qd8 {[%clk 0:00:05.3]} 35. Qd4 {[%clk 0:00:16.8]} 35... b5 {[%clk 0:00:05.1]}
36. c5 {[%clk 0:00:15.6]} 36... Qh4+ {[%clk 0:00:03.4]} 37. Kg1 {[%clk
0:00:14.8]} 37... dxc5 {[%clk 0:00:04]} 38. Qxc5 {[%clk 0:00:13.8]} 38... Bd7
{[%clk 0:00:04.6]} 39. Bd4 {[%clk 0:00:12.5]} 39... Qd8 {[%clk 0:00:03.9]} 40.
Bf2 {[%clk 0:00:11.8]} 40... Qb8 {[%clk 0:00:02.4]} 41. Bf1 {[%clk 0:00:10.3]}
41... a5 {[%clk 0:00:02.2]} 42. Rd2 {[%clk 0:00:09.3]} 42... Be6 {[%clk
0:00:01.9]} 43. Bxb5 {[%clk 0:00:07.7]} 43... Rc7 {[%clk 0:00:02.1]} 44. Qd6
{[%clk 0:00:07.4]} 1-0

[Event "*** Titled Tuesday Blitz"]
[Site "Chess.com"]
[Date "2020.05.26"]
[Round "1"]
[White "oykuince"]
[Black "GrafLermontov"]
[Result "0-1"]
[WhiteElo "2014"]
[BlackElo "2480"]
[TimeControl "180+1"]
[EndTime "10:07:48 PDT"]
[Termination "GrafLermontov won by resignation"]

1. e4 {[%clk 0:03:00.9]} 1... c5 {[%clk 0:02:59.4]} 2. Nf3 {[%clk 0:03:00.3]}
2... e6 {[%clk 0:02:57]} 3. d4 {[%clk 0:03:00.1]} 3... cxd4 {[%clk 0:02:56.8]}
4. Nxd4 {[%clk 0:03:00.7]} 4... Nc6 {[%clk 0:02:57.4]} 5. Nc3 {[%clk 0:03:00.8]}
5... Qc7 {[%clk 0:02:57]} 6. g3 {[%clk 0:03:01]} 6... a6 {[%clk 0:02:56.7]} 7.
Bg2 {[%clk 0:03:01.2]} 7... Nf6 {[%clk 0:02:57]} 8. O-O {[%clk 0:03:01.2]} 8...
Be7 {[%clk 0:02:55]} 9. Re1 {[%clk 0:03:01.1]} 9... d6 {[%clk 0:02:50.2]} 10.
Nxc6 {[%clk 0:03:00.4]} 10... bxc6 {[%clk 0:02:50.4]} 11. e5 {[%clk 0:03:00.7]}
11... dxe5 {[%clk 0:02:47.5]} 12. Rxe5 {[%clk 0:03:00.4]} 12... O-O {[%clk
0:02:46.2]} 13. Re1 {[%clk 0:02:55]} 13... Rd8 {[%clk 0:02:41.1]} 14. Qf3 {[%clk
0:02:52]} 14... Bb7 {[%clk 0:02:40.8]} 15. Bf4 {[%clk 0:02:50.6]} 15... Qb6
{[%clk 0:02:20.9]} 16. Na4 {[%clk 0:02:44.1]} 16... Qa5 {[%clk 0:02:16.8]} 17.
b3 {[%clk 0:02:39.2]} 17... Rd7 {[%clk 0:02:09.1]} 18. Qe2 {[%clk 0:02:07.1]}
18... Rad8 {[%clk 0:02:03.8]} 19. Be3 {[%clk 0:02:02.8]} 19... c5 {[%clk
0:01:55.6]} 20. Bxb7 {[%clk 0:01:57.3]} 20... Rxb7 {[%clk 0:01:56.5]} 21. Rad1
{[%clk 0:01:57.7]} 21... Rc8 {[%clk 0:01:51.4]} 22. c4 {[%clk 0:01:45]} 22... h6
{[%clk 0:01:45.7]} 23. Bf4 {[%clk 0:01:36.6]} 23... Bf8 {[%clk 0:01:06.4]} 24.
Rd2 {[%clk 0:01:24.3]} 24... Rd7 {[%clk 0:01:00.9]} 25. Red1 {[%clk 0:01:23.5]}
25... Rxd2 {[%clk 0:00:58.8]} 26. Qxd2 {[%clk 0:01:18]} 26... Qxd2 {[%clk
0:00:38.6]} 27. Rxd2 {[%clk 0:01:17.5]} 27... g5 {[%clk 0:00:35.9]} 28. Be5
{[%clk 0:01:07.7]} 28... Be7 {[%clk 0:00:17.7]} 29. Bxf6 {[%clk 0:00:45.5]}
29... Bxf6 {[%clk 0:00:18.6]} 30. Rd6 {[%clk 0:00:45.3]} 30... a5 {[%clk
0:00:18.8]} 31. Ra6 {[%clk 0:00:44.5]} 31... Rd8 {[%clk 0:00:18.2]} 32. Rxa5
{[%clk 0:00:40.4]} 32... Rd2 {[%clk 0:00:15.5]} 33. Nxc5 {[%clk 0:00:37.5]}
33... Bd4 {[%clk 0:00:11.1]} 34. Ne4 {[%clk 0:00:34.6]} 34... Rd1+ {[%clk
0:00:11.3]} 35. Kg2 {[%clk 0:00:34.2]} 35... f5 {[%clk 0:00:12.2]} 36. Nd6
{[%clk 0:00:29.5]} 36... Rd2 {[%clk 0:00:08.3]} 37. Ra8+ {[%clk 0:00:19.2]}
37... Kg7 {[%clk 0:00:08.7]} 38. Ra7+ {[%clk 0:00:19.1]} 38... Bxa7 {[%clk
0:00:07.8]} 39. Kg1 {[%clk 0:00:18]} 39... Rxf2 {[%clk 0:00:07.8]} 40. Kh1
{[%clk 0:00:17.5]} 40... Rxa2 {[%clk 0:00:07.8]} 41. h3 {[%clk 0:00:16.5]} 41...
Rb2 {[%clk 0:00:07.7]} 42. h4 {[%clk 0:00:16]} 42... Rxb3 {[%clk 0:00:07.8]} 43.
Nc8 {[%clk 0:00:15.5]} 43... Bc5 {[%clk 0:00:07.5]} 44. Nb6 {[%clk 0:00:15]}
44... Rxb6 {[%clk 0:00:07.1]} 45. Kg2 {[%clk 0:00:15.8]} 45... Rb4 {[%clk
0:00:07.7]} 46. Kf3 {[%clk 0:00:16.7]} 46... Rxc4 {[%clk 0:00:08.6]} 47. hxg5
{[%clk 0:00:16.4]} 47... hxg5 {[%clk 0:00:09.5]} 48. g4 {[%clk 0:00:17.3]} 48...
Kf6 {[%clk 0:00:10.2]} 49. gxf5 {[%clk 0:00:16.2]} 49... exf5 {[%clk 0:00:11.1]}
50. Kg2 {[%clk 0:00:16.5]} 50... g4 {[%clk 0:00:11.4]} 51. Kh2 {[%clk
0:00:16.5]} 51... Kg5 {[%clk 0:00:12.3]} 52. Kh1 {[%clk 0:00:17.4]} 52... f4
{[%clk 0:00:12.7]} 0-1

[Event "*** Titled Tuesday Blitz"]
[Site "Chess.com"]
[Date "2020.05.26"]
[Round "1"]
[White "FrogMist"]
[Black "lilleper1"]
[Result "0-1"]
[WhiteElo "2367"]
[BlackElo "2727"]
[TimeControl "180+1"]
[EndTime "10:07:50 PDT"]
[Termination "lilleper1 won on time"]

1. e4 {[%clk 0:03:00.9]} 1... c5 {[%clk 0:03:00]} 2. Nf3 {[%clk 0:03:00.5]} 2...
d6 {[%clk 0:03:00.3]} 3. d4 {[%clk 0:03:00.5]} 3... cxd4 {[%clk 0:03:00.6]} 4.
Nxd4 {[%clk 0:03:01.4]} 4... Nf6 {[%clk 0:03:00.9]} 5. Nc3 {[%clk 0:03:01.9]}
5... a6 {[%clk 0:03:01.3]} 6. Bg5 {[%clk 0:03:01.6]} 6... Nbd7 {[%clk
0:03:00.5]} 7. Qe2 {[%clk 0:03:01.3]} 7... h6 {[%clk 0:02:59.3]} 8. Bh4 {[%clk
0:03:01.1]} 8... g6 {[%clk 0:02:59.6]} 9. f4 {[%clk 0:03:00.7]} 9... e5 {[%clk
0:02:59.6]} 10. fxe5 {[%clk 0:03:01.6]} 10... dxe5 {[%clk 0:03:00.1]} 11. O-O-O
{[%clk 0:03:02.2]} 11... Qc7 {[%clk 0:03:00.2]} 12. Nb3 {[%clk 0:03:00.5]} 12...
b5 {[%clk 0:03:00.3]} 13. Rxd7 {[%clk 0:03:00.7]} 13... Nxd7 {[%clk 0:02:59]}
14. Nd5 {[%clk 0:03:00.1]} 14... Qb8 {[%clk 0:02:58.4]} 15. Na5 {[%clk
0:02:49.2]} 15... Bg7 {[%clk 0:02:57.8]} 16. Qd2 {[%clk 0:01:51.6]} 16... O-O
{[%clk 0:02:46.9]} 17. Be2 {[%clk 0:01:18.9]} 17... Nc5 {[%clk 0:02:35.7]} 18.
Nc6 {[%clk 0:00:59.9]} 18... Qb7 {[%clk 0:02:32.7]} 19. Qb4 {[%clk 0:00:34.6]}
19... Ne6 {[%clk 0:02:18]} 20. Rf1 {[%clk 0:00:34.5]} 20... g5 {[%clk
0:02:11.2]} 21. Na5 {[%clk 0:00:30.4]} 21... Qd7 {[%clk 0:01:50.7]} 22. Bf2
{[%clk 0:00:27.5]} 22... Nf4 {[%clk 0:01:40]} 23. Bf3 {[%clk 0:00:21.9]} 23...
Rb8 {[%clk 0:01:26.4]} 24. Bc5 {[%clk 0:00:20.8]} 24... Re8 {[%clk 0:01:22]} 25.
Nb6 {[%clk 0:00:20.5]} 25... Qc7 {[%clk 0:01:15.3]} 26. Nd5 {[%clk 0:00:13.5]}
26... Nxd5 {[%clk 0:01:15.1]} 27. exd5 {[%clk 0:00:14.4]} 27... Bf5 {[%clk
0:01:12.9]} 28. d6 {[%clk 0:00:13.9]} 28... Qc8 {[%clk 0:01:05.4]} 29. Bd5
{[%clk 0:00:13.5]} 29... e4 {[%clk 0:00:57.3]} 30. Bc6 {[%clk 0:00:11.8]} 30...
Rd8 {[%clk 0:00:53.1]} 31. h3 {[%clk 0:00:08.7]} 31... Bg6 {[%clk 0:00:50.5]}
32. Bd5 {[%clk 0:00:05.9]} 32... e3 {[%clk 0:00:46.7]} 33. Nc6 {[%clk
0:00:05.8]} 33... e2 {[%clk 0:00:43.9]} 34. Re1 {[%clk 0:00:06.1]} 34... Qd7
{[%clk 0:00:38.5]} 35. Nxb8 {[%clk 0:00:05.4]} 35... Rxb8 {[%clk 0:00:37]} 36.
Rxe2 {[%clk 0:00:06]} 36... Qf5 {[%clk 0:00:37.2]} 37. Be4 {[%clk 0:00:05.5]}
37... Qf1+ {[%clk 0:00:30.9]} 38. Qe1 {[%clk 0:00:03.6]} 38... Qf6 {[%clk
0:00:30.7]} 39. c3 {[%clk 0:00:02.9]} 39... b4 {[%clk 0:00:29.2]} 40. Bxg6
{[%clk 0:00:02.9]} 40... Qxg6 {[%clk 0:00:26.1]} 41. Re8+ {[%clk 0:00:03.6]}
41... Rxe8 {[%clk 0:00:25]} 42. Qxe8+ {[%clk 0:00:04.5]} 42... Kh7 {[%clk
0:00:25.8]} 43. d7 {[%clk 0:00:05.1]} 43... bxc3 {[%clk 0:00:24.6]} 44. d8=Q
{[%clk 0:00:04.9]} 44... cxb2+ {[%clk 0:00:24.2]} 45. Kd2 {[%clk 0:00:05.2]}
45... Bf6 {[%clk 0:00:15.2]} 46. Qd3 {[%clk 0:00:02]} 46... Qxd3+ {[%clk
0:00:14.4]} 47. Kxd3 {[%clk 0:00:02.9]} 47... b1=Q+ {[%clk 0:00:14.8]} 48. Kc4
{[%clk 0:00:03.8]} 48... Qc2+ {[%clk 0:00:14.8]} 49. Kd5 {[%clk 0:00:04.2]}
49... Qd3+ {[%clk 0:00:14.6]} 0-1

[Event "*** Titled Tuesday Blitz"]
[Site "Chess.com"]
[Date "2020.05.26"]
[Round "1"]
[White "VALPARAISO37"]
[Black "PavelShkapenko"]
[Result "1-0"]
[WhiteElo "2343"]
[BlackElo "2676"]
[TimeControl "180+1"]
[EndTime "10:07:50 PDT"]
[Termination "VALPARAISO37 won on time"]

1. d4 {[%clk 0:03:00.9]} 1... Nf6 {[%clk 0:02:46.1]} 2. c4 {[%clk 0:02:56.9]}
2... e6 {[%clk 0:02:46.3]} 3. Nc3 {[%clk 0:02:56.5]} 3... Bb4 {[%clk 0:02:46.8]}
4. a3 {[%clk 0:02:56.7]} 4... Bxc3+ {[%clk 0:02:46.2]} 5. bxc3 {[%clk
0:02:57.4]} 5... c5 {[%clk 0:02:46.8]} 6. e3 {[%clk 0:02:57]} 6... Nc6 {[%clk
0:02:45.3]} 7. Bd3 {[%clk 0:02:56.7]} 7... b6 {[%clk 0:02:44.5]} 8. e4 {[%clk
0:02:54.5]} 8... d6 {[%clk 0:02:42.7]} 9. Nf3 {[%clk 0:02:52.1]} 9... e5 {[%clk
0:02:38.5]} 10. d5 {[%clk 0:02:43.4]} 10... Ne7 {[%clk 0:02:38.2]} 11. Nd2
{[%clk 0:02:33.4]} 11... Ng6 {[%clk 0:02:34.6]} 12. Nf1 {[%clk 0:02:31.2]} 12...
Nf4 {[%clk 0:02:18.3]} 13. Bxf4 {[%clk 0:02:29.5]} 13... exf4 {[%clk 0:02:18.4]}
14. Nd2 {[%clk 0:02:28.2]} 14... Ng4 {[%clk 0:02:17.8]} 15. Nf3 {[%clk
0:02:24.2]} 15... Qf6 {[%clk 0:02:16.3]} 16. Rc1 {[%clk 0:02:21.7]} 16... Ne5
{[%clk 0:02:12]} 17. Nxe5 {[%clk 0:02:20.8]} 17... Qxe5 {[%clk 0:02:12.5]} 18.
O-O {[%clk 0:02:20.9]} 18... O-O {[%clk 0:02:12.4]} 19. a4 {[%clk 0:02:18]}
19... Bd7 {[%clk 0:02:05.8]} 20. f3 {[%clk 0:02:15.1]} 20... Rae8 {[%clk
0:01:35.1]} 21. Qd2 {[%clk 0:02:13.8]} 21... f5 {[%clk 0:01:34.8]} 22. Ra1
{[%clk 0:02:09.2]} 22... fxe4 {[%clk 0:01:33.9]} 23. Bxe4 {[%clk 0:02:07.3]}
23... Qf6 {[%clk 0:01:25.2]} 24. a5 {[%clk 0:02:06.9]} 24... b5 {[%clk
0:01:25.4]} 25. cxb5 {[%clk 0:02:06]} 25... Bxb5 {[%clk 0:01:25.5]} 26. Rfe1
{[%clk 0:02:05.8]} 26... Bc4 {[%clk 0:01:23.4]} 27. Rab1 {[%clk 0:02:03.8]}
27... Rb8 {[%clk 0:01:16.5]} 28. Qc2 {[%clk 0:02:01.9]} 28... g6 {[%clk
0:01:15.8]} 29. Qd2 {[%clk 0:02:02]} 29... Rfe8 {[%clk 0:01:12.2]} 30. h3 {[%clk
0:01:48.8]} 30... Kg7 {[%clk 0:01:06.9]} 31. Kh2 {[%clk 0:01:47.4]} 31... Qh4
{[%clk 0:01:05.3]} 32. Kg1 {[%clk 0:01:44.7]} 32... Qg5 {[%clk 0:01:04.2]} 33.
Red1 {[%clk 0:01:33.3]} 33... Bb5 {[%clk 0:01:03.3]} 34. c4 {[%clk 0:01:31.1]}
34... Bd7 {[%clk 0:01:03.2]} 35. Kh1 {[%clk 0:01:28.8]} 35... Qg3 {[%clk
0:00:52.9]} 36. Qc3+ {[%clk 0:01:28.2]} 36... Kf7 {[%clk 0:00:49.8]} 37. Qc2
{[%clk 0:01:24.8]} 37... Rb4 {[%clk 0:00:46.5]} 38. Rxb4 {[%clk 0:01:24.2]}
38... cxb4 {[%clk 0:00:46.7]} 39. Rb1 {[%clk 0:01:24.9]} 39... Rb8 {[%clk
0:00:28.8]} 40. c5 {[%clk 0:01:23.4]} 40... b3 {[%clk 0:00:25.8]} 41. Qc3 {[%clk
0:01:17.4]} 41... Bxh3 {[%clk 0:00:18.2]} 42. gxh3 {[%clk 0:01:17.2]} 42...
Qxh3+ {[%clk 0:00:18.7]} 43. Kg1 {[%clk 0:01:17.6]} 43... Qg3+ {[%clk
0:00:19.2]} 44. Kf1 {[%clk 0:01:18]} 44... Qh3+ {[%clk 0:00:19.6]} 45. Ke2
{[%clk 0:01:18.5]} 45... Qg2+ {[%clk 0:00:19.8]} 46. Kd3 {[%clk 0:01:17.7]}
46... dxc5 {[%clk 0:00:19.7]} 47. Qxc5 {[%clk 0:01:16.8]} 47... Re8 {[%clk
0:00:13.7]} 48. d6 {[%clk 0:01:15.4]} 48... Kf6 {[%clk 0:00:09.2]} 49. Qd4+
{[%clk 0:01:14.4]} 49... Kg5 {[%clk 0:00:08]} 50. Qc5+ {[%clk 0:01:12.6]} 50...
Kh6 {[%clk 0:00:07]} 51. Rg1 {[%clk 0:01:03.6]} 51... Qh2 {[%clk 0:00:05.7]} 52.
Qg5+ {[%clk 0:01:00.3]} 52... Kg7 {[%clk 0:00:05.9]} 53. Rg2 {[%clk 0:00:56.2]}
53... Qh1 {[%clk 0:00:05.6]} 54. Kc3 {[%clk 0:00:50.1]} 54... Qc1+ {[%clk
0:00:05.1]} 55. Kd4 {[%clk 0:00:47.9]} 55... b2 {[%clk 0:00:04.1]} 56. d7 {[%clk
0:00:43.3]} 56... b1=Q {[%clk 0:00:02.8]} 57. Bxb1 {[%clk 0:00:40.4]} 57... Qe3+
{[%clk 0:00:02]} 58. Kd5 {[%clk 0:00:39.7]} 58... Re5+ {[%clk 0:00:02]} 59.
Qxe5+ {[%clk 0:00:39.1]} 1-0